bitfinex/quotes_SOLUSD_20220109
["timestamp","ask_amount","ask_price","bid_price","bid_amount"]
[1641741657604,4.798,139.04,138.94,8.63]
[1641741658003,0.25,139.03,138.93,1.798]
[1641741658205,23.40364459,139.01,138.93,1.798]
[1641741658403,0.25,139.0,138.93,1.798]
[1641741658905,24.89293674,138.98,138.85,8.63]
[1641741659106,24.89293674,138.98,138.86,3.0]
[1641741659412,0.25,138.97,138.87,0.25]
[1641741659608,0.25,138.97,138.86,3.0]
[1641741659806,0.25,138.97,138.87,0.25]
[1641741660005,0.25,138.97,138.87,0.51]
[1641741660208,0.25,138.97,138.87,3.0]
[1641741660406,0.25,138.97,138.84,10.41082586]
[1641741660608,2.049,138.97,138.84,10.41082586]
[1641741660808,2.049,138.97,138.88,1.78082586]
[1641741661108,0.25,138.97,138.89,0.25]
[1641741661308,0.25,138.97,138.9,1.799]
[1641741661509,0.25,138.97,138.91,0.25]
[1641741661709,1.799,139.03,138.91,0.25]
[1641741661908,31.2817,139.04,138.92,1.798]
[1641741661909,10.428,139.04,138.92,1.798]
[1641741662140,46.9643,139.05,138.92,3.57882586]
[1641741662314,1.798,139.04,138.93,0.25]
[1641741662716,27.25607193,139.03,138.93,0.51]
[1641741663013,1.798,139.04,138.93,0.51]
[1641741663014,1.798,139.04,138.94,1.78082586]
[1641741663214,1.798,139.08,138.94,10.41082586]
[1641741663420,8.63,139.12,138.95,0.25]
[1641741663421,1.798,139.11,138.95,0.25]
[1641741663815,28.21095799,139.1,138.95,0.25]
[1641741664014,1.798,139.09,138.94,19.4253]
[1641741664215,4.798,139.09,138.94,19.4253]
[1641741664416,4.798,139.09,138.95,0.51]
[1641741664619,4.798,139.09,138.95,2.308]
[1641741664819,0.25,139.08,138.96,8.63]
[1641741665017,3.0,139.09,138.99,10.7915]
[1641741665218,3.0,139.09,138.99,19.2955]
[1641741665417,3.0,139.09,139.0,2.308]
[1641741665718,3.0,139.09,139.0,2.048]
[1641741666917,3.0,139.09,139.01,0.26]
[1641741667519,3.0,139.09,139.01,8.89]
[1641741667819,23.3733,139.15,139.05,10.7868]
[1641741668016,8.11861307,139.14,139.03,8.63]
[1641741668218,9.91561307,139.14,139.03,8.63]
[1641741668417,0.25,139.13,139.03,8.63]
[1641741668618,1.797,139.12,139.03,8.63]
[1641741669018,0.25,139.11,139.03,8.63]
[1641741669218,26.45738857,139.1,139.03,8.63]
[1641741669418,0.25,139.09,139.03,8.63]
[1641741669859,1.797,139.08,139.02,1.797]
[1641741670054,31.87132365,139.07,138.97,8.63]
[1641741670255,1.798,139.06,138.93,8.63]
[1641741670462,0.25,139.05,138.94,1.798]
[1641741670655,0.25,139.05,138.94,10.428]
[1641741670955,0.25,139.05,138.94,8.63]
[1641741671155,0.25,139.05,138.95,1.798]
[1641741671356,31.87132365,139.07,138.96,8.63]
[1641741671556,0.25,139.06,138.97,1.798]
[1641741671962,0.25,139.06,138.98,0.26]
[1641741672157,0.25,139.06,138.98,11.0525]
[1641741672558,0.25,139.06,138.99,0.25]
[1641741672758,0.51,139.06,138.99,0.25]
[1641741674359,0.51,139.06,138.98,0.25]
[1641741674959,3.51,139.06,138.98,0.25]
[1641741675761,3.51,139.06,138.97,1.798]
[1641741675961,5.308,139.06,138.94,8.63]
[1641741676563,5.308,139.06,138.95,10.795]
[1641741676760,4.06152724,139.05,138.95,12.593]
[1641741676961,28.77163168,139.04,138.95,12.593]
[1641741677367,28.77163168,139.04,138.96,0.25]
[1641741677767,28.77163168,139.04,138.95,1.798]
[1641741677965,28.77163168,139.04,138.93,10.7966]
[1641741678364,28.77163168,139.04,138.91,10.428]
[1641741679162,4.06269515,139.03,138.92,11.0479]
[1641741679363,0.25,139.02,138.92,10.7979]
[1641741679564,2.048,139.02,138.9,12.22423628]
[1641741679765,2.048,139.02,138.89,10.428]
[1641741679766,22.44059436,139.01,138.89,10.428]
[1641741679966,0.25,139.0,138.87,33.44071616]
[1641741680165,0.25,139.0,138.89,10.8001]
[1641741680366,0.25,139.0,138.89,12.22423628]
[1641741680566,0.51,139.0,138.89,14.02323628]
[1641741680770,0.51,139.0,138.9,0.25]
[1641741681167,0.51,139.0,138.9,2.03082586]
[1641741681571,0.51,139.0,138.9,12.83022586]
[1641741681969,22.44059436,139.01,138.91,2.059]
[1641741682169,10.429,139.04,138.91,2.059]
[1641741682370,73.8885,139.05,138.92,0.25]
[1641741682571,73.8885,139.05,138.97,10.7942]
[1641741682775,1.798,139.08,138.97,18.5002]
[1641741682972,10.428,139.09,138.98,0.25]
[1641741683171,24.56206907,139.08,138.98,0.25]
[1641741683572,4.06414582,139.07,138.98,11.0434]
[1641741684573,4.06414582,139.07,138.99,0.26]
[1641741684777,4.06414582,139.07,139.03,10.7898]
[1641741684975,4.06414582,139.07,139.04,0.25]
[1641741685176,4.06414582,139.07,139.05,3.03219997]
[1641741685378,4.06414582,139.07,139.06,0.25]
[1641741685979,29.5449727,139.13,139.06,0.25]
[1641741686176,0.25,139.12,139.06,0.25]
[1641741686575,0.25,139.12,139.05,0.25]
[1641741686876,4.31414582,139.12,139.05,0.25]
[1641741687478,4.31414582,139.12,139.05,10.7882]
[1641741687479,4.06414582,139.11,139.05,10.7882]
[1641741687878,4.06414582,139.11,139.06,0.25]
[1641741688398,4.06414582,139.11,139.01,0.26]
[1641741688600,22.74044335,139.1,139.02,10.7902]
[1641741689201,4.06414582,139.09,139.02,10.7902]
[1641741689398,0.51,139.08,139.02,10.7902]
[1641741689798,0.51,139.08,139.0,10.7918]
[1641741689999,0.51,139.08,139.0,11.0418]
[1641741690198,23.56166603,139.07,139.0,0.25]
[1641741690400,0.25,139.06,139.0,0.25]
[1641741691602,0.25,139.08,139.0,0.25]
[1641741691801,0.25,139.13,139.0,0.25]
[1641741692001,1.797,139.12,139.0,0.25]
[1641741692201,33.59801728,139.12,139.0,0.25]
[1641741692502,0.25,139.11,139.0,11.0424]
[1641741692700,4.320315,139.11,139.0,11.0424]
[1641741693102,4.320315,139.11,139.0,19.6724]
[1641741693302,4.320315,139.11,139.01,2.057]
[1641741693502,4.070315,139.1,139.02,0.25]
[1641741693704,4.070315,139.1,139.02,2.03082586]
[1641741693902,4.070315,139.1,139.03,0.26]
[1641741694104,12.21096444,139.14,139.06,10.7877]
[1641741694503,12.21096444,139.14,139.07,0.25]
[1641741694704,12.21096444,139.14,139.07,0.51]
[1641741695104,4.070315,139.18,139.07,5.873]
[1641741695304,34.77344966,139.18,139.07,5.873]
[1641741695918,30.70313466,139.18,139.07,5.873]
[1641741696313,30.70313466,139.18,139.08,1.796]
[1641741696610,4.330315,139.17,139.09,0.51]
[1641741696813,4.330315,139.17,139.11,10.7836]
[1641741697012,4.330315,139.17,139.12,0.25]
[1641741697212,4.070315,139.17,139.12,0.25]
[1641741697614,4.070315,139.16,139.12,0.25]
[1641741698215,4.070315,139.16,139.1,10.7839]
[1641741698415,4.070315,139.16,139.11,0.25]
[1641741698615,4.05706265,139.16,139.08,35.9423]
[1641741699015,0.25,139.15,139.07,1.796]
[1641741699814,0.51,139.15,139.07,1.796]
[1641741700015,36.33741639,139.14,139.07,1.796]
[1641741700416,0.25,139.13,139.07,1.796]
[1641741700616,3.25,139.13,139.07,1.796]
[1641741701016,3.25,139.13,139.01,1.797]
[1641741701617,7.30706265,139.13,139.01,1.797]
[1641741701816,7.30706265,139.13,139.02,10.7901]
[1641741702022,9.10406265,139.13,139.02,10.7901]
[1641741702222,7.30706265,139.13,139.03,0.25]
[1641741702624,7.30706265,139.13,139.01,0.25]
[1641741702823,7.30706265,139.13,139.04,10.7893]
[1641741703523,7.30706265,139.13,139.02,8.63]
[1641741703723,4.05616679,139.12,139.03,0.25]
[1641741703925,26.89561452,139.11,139.03,0.25]
[1641741704122,26.89561452,139.11,139.03,11.0399]
[1641741704524,0.26,139.1,139.03,11.0399]
[1641741705025,8.11322944,139.12,139.03,11.0399]
[1641741705226,4.05706265,139.13,139.04,0.26]
[1641741705424,4.05706265,139.13,139.08,10.7853]
[1641741705825,8.11215733,139.16,139.08,10.7853]
[1641741706227,8.11215733,139.16,139.09,0.25]
[1641741706428,8.11215733,139.16,139.11,10.7837]
[1641741706625,8.11215733,139.16,139.05,8.63]
[1641741706626,0.25,139.15,139.05,8.63]
[1641741707024,0.25,139.15,139.06,0.25]
[1641741707458,22.60566978,139.14,139.05,8.63]
[1641741707661,22.60566978,139.14,139.01,8.63]
[1641741707859,0.25,139.13,139.01,8.63]
[1641741708260,8.36217712,139.13,139.01,8.63]
[1641741708860,8.36217712,139.13,139.02,0.26]
[1641741709063,4.30706265,139.13,139.03,10.79]
[1641741709662,4.30706265,139.13,139.01,20.85423628]
[1641741709861,4.30706265,139.13,139.01,12.22423628]
[1641741710062,28.64433004,139.11,139.0,1.797]
[1641741710262,37.27433004,139.11,139.0,1.797]
[1641741710462,0.25,139.1,139.0,1.797]
[1641741710661,26.25604249,139.08,139.0,1.797]
[1641741711264,26.25604249,139.08,139.0,12.5894]
[1641741711463,0.25,139.07,139.0,1.797]
[1641741712565,0.51,139.07,139.0,1.797]
[1641741712766,0.26,139.07,139.0,1.797]
[1641741712966,0.26,139.07,139.01,0.25]
[1641741713466,0.26,139.07,139.01,0.51]
[1641741713866,4.05706265,139.1,139.01,0.51]
[1641741714067,0.26,139.09,139.01,0.51]
[1641741714271,32.36123379,139.09,139.01,0.51]
[1641741714666,32.36123379,139.09,139.01,0.26]
[1641741714866,32.36123379,139.09,139.01,11.0516]
[1641741715066,32.36123379,139.09,139.01,11.3016]
[1641741715269,0.25,139.09,139.01,11.3016]
[1641741716369,0.25,139.09,139.01,11.0516]
[1641741716568,3.25,139.09,139.01,11.0516]
[1641741716769,3.25,139.09,139.02,0.25]
[1641741717367,3.25,139.09,139.02,11.0406]
[1641741717567,0.26,139.08,139.02,11.0406]
[1641741717768,0.26,139.08,139.01,0.26]
[1641741717968,0.26,139.08,139.01,0.51]
[1641741718368,0.26,139.08,139.01,11.0514]
[1641741719271,0.26,139.08,139.01,10.7914]
[1641741719473,18.56847782,139.09,139.02,62.0]
[1641741719670,18.56847782,139.09,139.02,62.25]
[1641741720070,14.51141517,139.09,139.02,62.25]
[1641741720373,14.51141517,139.09,139.01,10.7914]
[1641741721274,4.31685457,139.08,139.0,1.797]
[1641741721678,12.94685457,139.08,139.0,1.797]
[1641741721877,8.12391722,139.07,139.0,1.797]
[1641741722174,68.0,139.05,138.92,8.63]
[1641741722375,0.25,139.04,138.92,8.63]
[1641741722974,0.25,139.04,138.94,10.7969]
[1641741723575,0.25,139.04,138.92,20.85423628]
[1641741723876,0.25,139.04,138.93,11.3075]
[1641741724076,0.25,139.04,138.94,20.85423628]
[1641741724275,0.25,139.04,138.94,22.63506214]
[1641741724478,0.25,139.04,138.95,0.25]
[1641741724875,0.25,139.04,138.95,10.7963]
[1641741725075,0.25,139.04,138.94,12.22423628]
[1641741725875,0.25,139.05,138.94,12.22423628]
[1641741726076,0.25,139.05,138.94,14.00506214]
[1641741726276,0.25,139.05,138.95,0.25]
[1641741726475,0.25,139.05,138.95,11.3063]
[1641741726678,0.25,139.05,138.95,13.08712586]
[1641741728379,0.25,139.05,138.95,11.3063]
[1641741729282,30.24399573,139.06,138.95,11.3063]
[1641741729482,30.24399573,139.06,138.95,23.53053628]
[1641741730284,26.18693308,139.06,138.95,23.53053628]
[1641741730591,26.18693308,139.06,138.93,10.7973]
[1641741730787,26.18693308,139.06,138.92,20.85423628]
[1641741731185,34.81693308,139.06,138.92,12.22423628]
[1641741731385,0.25,139.05,138.92,12.22423628]
[1641741731588,4.3161786,139.05,138.92,12.22423628]
[1641741731785,8.37324125,139.05,138.93,0.25]
[1641741731985,8.37324125,139.05,138.92,12.22423628]
[1641741732189,8.63,139.04,138.89,8.63]
[1641741732384,28.57843372,139.03,138.89,8.63]
[1641741732586,32.63549637,139.03,138.89,8.63]
[1641741732785,32.63549637,139.03,138.89,20.85423628]
[1641741733587,8.12324125,139.02,138.89,20.85423628]
[1641741733786,8.12324125,139.02,138.89,31.65453628]
[1641741733986,0.25,139.01,138.89,31.65453628]
[1641741734187,0.25,139.01,138.9,0.25]
[1641741734587,0.25,139.01,138.9,12.47423628]
[1641741734988,56.75979637,139.03,138.9,23.27413628]
[1641741735188,56.75979637,139.03,138.91,19.67747988]
[1641741735388,32.38549637,139.03,138.92,2.048]
[1641741735587,32.38549637,139.03,138.93,8.63]
[1641741735789,23.121,139.05,138.93,21.45830574]
[1641741735991,23.121,139.05,138.93,24.79254202]
[1641741736188,23.121,139.05,138.93,12.22423628]
[1641741736389,23.121,139.05,138.93,23.02143628]
[1641741736790,23.121,139.05,138.94,22.89506214]
[1641741737191,23.121,139.05,138.95,1.78082586]
[1641741737393,23.121,139.05,138.96,0.26]
[1641741737593,31.1959711,139.06,138.95,10.41082586]
[1641741737791,31.1959711,139.06,138.96,10.7955]
[1641741737992,31.1959711,139.06,138.95,8.63]
[1641741738196,0.25,139.05,138.95,8.63]
[1641741738898,0.25,139.05,138.95,19.4263]
[1641741741033,0.25,139.05,138.95,10.7963]
[1641741741232,0.25,139.05,138.95,19.4263]
[1641741741832,4.30706265,139.05,138.95,19.4263]
[1641741742233,4.30706265,139.05,138.93,10.7971]
[1641741742436,29.58052023,139.03,138.91,12.22423628]
[1641741742835,0.25,139.02,138.91,12.22423628]
[1641741743035,0.25,139.02,138.91,20.85423628]
[1641741743440,0.25,139.02,138.91,12.22423628]
[1641741743937,0.25,139.02,138.91,23.02293628]
[1641741744740,1.799,139.01,138.91,23.02293628]
[1641741744940,28.02105872,139.0,138.91,23.02293628]
[1641741746241,28.02105872,139.0,138.92,11.3079]
[1641741746644,27.77105872,139.0,138.92,10.7979]
[1641741746842,0.25,138.99,138.92,10.7979]
[1641741747843,5.85606265,139.02,138.92,10.7979]
[1641741747844,5.85606265,139.02,138.93,11.0478]
[1641741748044,5.85606265,139.02,138.93,11.3078]
[1641741748045,4.05706265,139.02,138.93,11.3078]
[1641741748245,0.25,139.01,138.93,23.53203628]
[1641741749444,0.25,139.03,138.93,23.53203628]
[1641741751248,0.25,139.03,138.93,23.27203628]
[1641741752172,0.25,139.03,138.93,31.90203628]
[1641741752371,0.25,139.03,138.93,23.27203628]
[1641741755777,0.25,139.03,138.94,11.0565]
[1641741755976,0.25,139.03,138.95,0.25]
[1641741756380,2.03817849,139.01,138.95,0.25]
[1641741756579,2.03817849,139.01,138.95,8.88]
[1641741756779,28.08973324,139.01,138.95,8.88]
[1641741756979,26.05155475,139.01,138.95,8.88]
[1641741757179,26.05155475,139.01,138.95,19.6762]
[1641741757680,28.08973324,139.01,138.95,19.6762]
[1641741757881,28.08973324,139.01,138.95,11.0462]
[1641741758088,2.03817849,139.01,138.95,11.0462]
[1641741758683,4.05706265,139.05,138.96,77.0]
[1641741758886,4.05706265,139.06,139.0,10.7922]
[1641741759284,4.05706265,139.06,139.01,0.25]
[1641741759785,30.28782079,139.07,139.01,0.25]
[1641741759986,0.25,139.06,139.01,0.25]
[1641741760186,4.05706265,139.08,139.01,11.0416]
[1641741760393,4.05706265,139.08,139.02,0.51]
[1641741760788,4.05706265,139.08,139.02,0.25]
[1641741760987,4.05706265,139.08,139.02,36.2096]
[1641741761285,25.37414781,139.09,139.03,10.7895]
[1641741761686,4.05706265,139.11,139.03,10.7895]
[1641741761886,0.25,139.1,139.03,10.7895]
[1641741762987,0.25,139.1,139.05,10.788]
[1641741763387,4.05706265,139.11,139.06,0.25]
[1641741763590,4.05706265,139.12,139.06,0.25]
[1641741763788,4.05706265,139.12,139.04,0.25]
[1641741764190,6.0929768,139.14,139.04,0.25]
[1641741764191,4.05706265,139.14,139.04,0.25]
[1641741764393,24.84804958,139.13,139.04,0.25]
[1641741764791,24.84804958,139.13,139.08,10.786]
[1641741764991,0.25,139.12,139.08,10.786]
[1641741765593,0.25,139.14,139.08,10.786]
[1641741765795,4.30706265,139.14,139.08,10.786]
[1641741766494,0.25,139.14,139.08,10.786]
[1641741766694,43.84887636,139.15,139.08,10.786]
[1641741767294,39.79181371,139.15,139.08,10.786]
[1641741767996,0.25,139.14,139.08,10.786]
[1641741769397,0.25,139.14,139.03,1.797]
[1641741769597,31.92673653,139.12,138.99,122.99832586]
[1641741769997,0.25,139.11,139.0,3.0]
[1641741770197,0.25,139.11,138.99,122.99832586]
[1641741770397,0.25,139.11,138.99,48.11722586]
[1641741770927,0.25,139.11,139.02,10.7902]
[1641741771125,0.25,139.11,138.99,1.78082586]
[1641741771327,26.79722142,139.09,138.98,77.576]
[1641741771527,26.79722142,139.09,138.98,1.797]
[1641741771725,0.25,139.08,138.98,1.797]
[1641741772627,0.25,139.08,138.99,0.25]
[1641741772828,0.25,139.08,139.0,10.7917]
[1641741773027,0.25,139.08,138.97,0.25]
[1641741773430,0.25,139.08,138.97,2.03082586]
[1641741774926,0.25,139.08,138.99,10.7932]
[1641741775129,1.798,139.07,138.96,37.7718]
[1641741775331,1.798,139.07,138.96,1.798]
[1641741775528,31.38024861,139.06,138.96,1.798]
[1641741776327,0.25,139.06,138.98,10.794]
[1641741776828,0.25,139.06,138.97,0.25]
[1641741776829,0.25,139.06,138.99,0.25]
[1641741777029,0.25,139.07,138.99,0.25]
[1641741777234,0.25,139.08,138.99,0.25]
[1641741777428,29.35467907,139.08,138.99,0.25]
[1641741777628,29.35467907,139.08,138.99,11.0426]
[1641741778931,0.25,139.07,138.99,11.0426]
[1641741779329,0.25,139.07,138.99,10.7926]
[1641741782437,0.25,139.07,139.0,0.25]
[1641741782639,10.37,139.09,139.0,11.0422]
[1641741782839,4.05706265,139.1,139.0,18.94714973]
[1641741783038,18.2599768,139.13,139.01,6.83782586]
[1641741783039,6.0929768,139.13,139.01,6.83782586]
[1641741783239,6.0929768,139.13,139.01,26.32314993]
[1641741783442,6.0929768,139.13,139.02,2.03082586]
[1641741783641,22.53829237,139.15,139.03,1.797]
[1641741783838,22.53829237,139.15,139.09,10.7846]
[1641741784241,22.53829237,139.15,139.1,3.25]
[1641741784440,4.0615129,139.16,139.1,3.25]
[1641741784640,4.0615129,139.16,139.1,0.25]
[1641741785043,46.8768,139.18,139.1,0.25]
[1641741785243,0.25,139.17,139.1,0.25]
[1641741785442,25.09106204,139.17,139.07,3.25]
[1641741785642,25.09106204,139.17,139.07,0.25]
[1641741785843,25.09106204,139.17,139.1,10.7847]
[1641741787246,46.8768,139.18,139.1,10.7847]
[1641741787445,10.37,139.19,139.11,0.25]
[1641741787646,10.37,139.19,139.13,10.782]
[1641741787844,0.25,139.18,139.13,10.782]
[1641741791453,0.25,139.18,139.11,10.7833]
[1641741791750,2.046,139.18,139.07,37.7415]
[1641741792052,2.046,139.18,139.09,3.0]
[1641741792451,2.046,139.18,139.1,0.25]
[1641741792652,0.25,139.18,139.1,0.25]
[1641741793551,0.25,139.18,139.08,3.51]
[1641741793751,0.25,139.18,139.11,10.7837]
[1641741793956,0.25,139.18,139.12,0.25]
[1641741797660,0.25,139.18,139.12,11.0331]
[1641741797855,0.25,139.18,139.12,10.7831]
[1641741798855,10.37,139.2,139.12,10.7831]
[1641741799056,10.37,139.2,139.13,0.25]
[1641741799256,10.37,139.2,139.15,10.7808]
[1641741800156,28.50032206,139.19,139.09,1.796]
[1641741800357,28.50032206,139.19,139.13,10.7818]
[1641741801057,1.796,139.21,139.14,0.25]
[1641741801257,57.9342,139.22,139.12,3.0]
[1641741801456,0.25,139.21,139.12,0.25]
[1641741802156,0.25,139.21,139.14,10.7814]
[1641741802356,0.25,139.21,139.15,0.25]
[1641741802958,47.5642,139.22,139.15,8.254]
[1641741803158,1.796,139.24,139.15,19.0346]
[1641741803358,79.1641,139.25,139.15,19.0346]
[1641741803958,25.0256,139.26,139.15,19.0346]
[1641741804163,25.0256,139.26,139.16,3.0]
[1641741804361,25.0256,139.26,139.17,0.25]
[1641741804560,25.0256,139.26,139.15,0.25]
[1641741804967,0.25,139.25,139.15,0.25]
[1641741805469,0.25,139.25,139.13,1.795]
[1641741805670,24.29458003,139.23,139.13,1.795]
[1641741805868,2.046,139.22,139.13,1.795]
[1641741807071,0.25,139.22,139.13,1.795]
[1641741807471,0.25,139.22,139.13,3.57582586]
[1641741807673,24.29458003,139.23,139.14,0.25]
[1641741807876,24.29458003,139.23,139.17,10.7793]
[1641741808272,24.29458003,139.23,139.13,39.50572586]
[1641741808475,1.796,139.22,139.14,0.25]
[1641741808674,24.29458003,139.23,139.14,0.25]
[1641741809073,0.25,139.22,139.14,0.25]
[1641741809873,24.29458003,139.23,139.17,10.7792]
[1641741810074,22.758,139.25,139.17,10.7792]
[1641741810276,6.0929768,139.28,139.18,2.045]
[1641741810673,6.0929768,139.28,139.18,3.82582586]
[1641741810875,6.0929768,139.28,139.19,0.26]
[1641741811076,31.7021175,139.27,139.19,0.26]
[1641741811276,31.7021175,139.27,139.23,10.7743]
[1641741812697,0.07962902,139.29,139.23,10.7743]
[1641741812897,0.32962902,139.29,139.23,10.7743]
[1641741813499,4.0606363,139.28,139.23,10.7743]
[1641741813698,27.74449784,139.27,139.23,10.7743]
[1641741813899,27.99449784,139.27,139.23,10.7743]
[1641741814299,27.99449784,139.27,139.19,35.915]
[1641741814501,27.99449784,139.27,139.2,0.25]
[1641741815798,27.99449784,139.27,139.23,10.7745]
[1641741816900,0.25,139.27,139.23,10.7745]
[1641741817401,0.32962902,139.29,139.21,10.7754]
[1641741818003,0.32962902,139.29,139.18,1.795]
[1641741818004,27.10593694,139.28,139.17,35.9215]
[1641741818201,27.10593694,139.28,139.15,77.7078]
[1641741818401,0.25,139.27,139.16,0.25]
[1641741818602,1.795,139.26,139.18,10.7782]
[1641741818801,1.795,139.26,139.15,79.5028]
[1641741819001,0.25,139.25,139.16,3.0]
[1641741819208,0.25,139.25,139.15,115.4277]
[1641741819602,0.25,139.25,139.17,1.78082586]
[1641741820008,0.25,139.26,139.15,127.65162426]
[1641741820208,0.25,139.26,139.15,138.02162426]
[1641741820409,0.25,139.26,139.2,10.7769]
[1641741821912,12.165,139.28,139.21,0.25]
[1641741822110,0.07962902,139.29,139.21,11.0256]
[1641741822510,0.32962902,139.29,139.21,11.0256]
[1641741823520,0.07962902,139.29,139.22,3.0]
[1641741823813,0.07962902,139.29,139.25,10.7712]
[1641741824011,0.07962902,139.29,139.25,16.1462]
[1641741824613,0.07962902,139.29,139.26,0.25]
[1641741824814,0.07962902,139.29,139.27,13.80339997]
[1641741826213,0.25,139.31,139.27,13.80339997]
[1641741826414,2.80958216,139.32,139.27,13.80339997]
[1641741827420,47.99556337,139.35,139.27,13.80339997]
[1641741828219,0.25,139.34,139.27,13.80339997]
[1641741830621,47.99556337,139.35,139.27,13.80339997]
[1641741831827,1.794,139.34,139.27,13.80339997]
[1641741832029,0.25,139.34,139.27,13.80339997]
[1641741832227,47.99556337,139.35,139.27,13.80339997]
[1641741832427,0.25,139.34,139.27,13.80339997]
[1641741836032,24.92376178,139.32,139.27,3.03219997]
[1641741836231,1.794,139.31,139.21,73.9685]
[1641741836430,2.044,139.31,139.21,73.9685]
[1641741837031,2.044,139.31,139.18,1.795]
[1641741837233,26.6039,139.31,139.19,35.916]
[1641741837431,24.8099,139.31,139.2,1.795]
[1641741837835,24.8099,139.31,139.21,0.25]
[1641741838033,24.8099,139.31,139.21,3.25]
[1641741838034,0.25,139.31,139.21,3.25]
[1641741838235,0.25,139.31,139.26,10.7723]
[1641741838953,0.25,139.31,139.21,2.29082586]
[1641741838954,1.794,139.33,139.27,0.25]
[1641741839155,6.0929768,139.36,139.3,11.09031148]
[1641741839753,10.37,139.4,139.3,11.09031148]
[1641741839754,1.794,139.39,139.3,10.7692]
[1641741839955,25.85540353,139.35,139.3,10.7692]
[1641741840153,25.85540353,139.35,139.26,73.4449]
[1641741840356,0.25,139.34,139.28,10.77]
[1641741840956,0.25,139.34,139.25,1.78082586]
[1641741841155,24.88411929,139.32,139.23,1.794]
[1641741841356,2.045,139.31,139.23,1.794]
[1641741841556,2.045,139.31,139.24,10.7734]
[1641741842157,1.045,139.31,139.23,1.794]
[1641741842457,2.045,139.31,139.2,1.795]
[1641741842859,8.776,139.31,139.2,1.795]
[1641741843057,28.11855475,139.29,139.2,1.795]
[1641741843258,1.795,139.28,139.19,76.7534]
[1641741843456,1.795,139.28,139.2,3.0]
[1641741843457,0.25,139.28,139.2,3.0]
[1641741843859,10.62,139.28,139.17,24.14762426]
[1641741844058,22.70619338,139.26,139.17,10.7787]
[1641741844358,2.045,139.25,139.17,10.7787]
[1641741845759,2.045,139.25,139.15,10.7801]
[1641741845969,2.045,139.25,139.14,13.36892426]
[1641741846163,9.281,139.25,139.14,1.795]
[1641741846367,27.41593473,139.23,139.14,1.795]
[1641741846662,13.94682586,139.22,139.14,1.795]
[1641741846866,14.19682586,139.22,139.14,1.795]
[1641741847064,12.416,139.22,139.14,1.795]
[1641741847264,23.2005,139.22,139.14,1.795]
[1641741848267,12.416,139.22,139.14,1.795]
[1641741848567,10.62,139.22,139.09,1.796]
[1641741848767,10.62,139.22,139.09,15.166]
[1641741848969,10.62,139.22,139.1,30.0738044]
[1641741849168,10.37,139.22,139.11,1.796]
[1641741849368,0.25,139.21,139.12,0.25]
[1641741849770,0.25,139.21,139.15,10.7808]
[1641741850373,29.21193473,139.23,139.15,10.7808]
[1641741850570,0.25,139.22,139.16,0.25]
[1641741852869,0.25,139.22,139.15,0.25]
[1641741853871,27.41593473,139.23,139.15,0.25]